bitfinex/quotes_ETHUSD_20250114
["timestamp","ask_amount","ask_price","bid_price","bid_amount"]
[1736879974139,0.0257,3233.2,3232.5,6.09356]
[1736879974140,0.03225333,3233.1,3232.5,6.09356]
[1736879974345,0.0257,3233.2,3232.5,3.09356]
[1736879974641,0.03235983,3233.1,3232.5,3.09356]
[1736879975064,2.91725167,3232.9,3232.4,3.61268079]
[1736879975229,0.0257,3232.5,3232.0,3.83636458]
[1736879975425,3.09396,3232.1,3232.0,3.83636458]
[1736879975652,3.09406,3232.0,3231.4,3.83636458]
[1736879975852,0.05745952,3232.1,3231.4,3.83636458]
[1736879976030,0.03176828,3231.9,3231.4,3.83636458]
[1736879976230,0.0257,3232.1,3231.4,3.83636458]
[1736879976425,0.0257,3232.1,3231.3,0.61924415]
[1736879976625,0.0257,3232.0,3231.3,0.61924415]
[1736879976868,3.15161872,3232.0,3231.3,0.61924415]
[1736879977166,3.09417,3231.9,3231.3,0.61924415]
[1736879977369,0.0257,3231.7,3231.3,0.61924415]
[1736879977570,0.03079081,3231.6,3231.3,0.61924415]
[1736879977729,0.03079081,3231.6,3231.0,3.09499]
[1736879978131,0.0257,3231.7,3230.7,3.7648]
[1736879978327,0.03060814,3231.6,3231.1,0.60715922]
[1736879978653,0.03060814,3231.6,3230.6,3.24084893]
[1736879978654,0.0257,3231.6,3230.6,0.32359726]
[1736879978860,3.12053,3231.2,3230.6,0.32359726]
[1736879979062,0.0257,3231.2,3230.4,3.52874369]
[1736879979264,0.03035827,3231.1,3230.4,3.52874369]
[1736879980001,3.12529827,3231.1,3230.4,3.52874369]
[1736879980298,3.12082,3230.9,3230.4,3.52874369]
[1736879980606,0.03001947,3230.8,3230.4,3.52874369]
[1736879981778,0.03001947,3230.8,3230.5,3.09546]
[1736879981993,0.25,3232.2,3230.9,3.09503]
[1736879981994,0.2157,3231.7,3230.9,3.09503]
[1736879982193,0.2157,3231.7,3230.7,3.0]
[1736879982417,0.02764989,3231.6,3231.1,3.09488]
[1736879982565,0.0257,3231.7,3230.9,2.91725167]
[1736879982765,0.0257,3231.7,3231.3,3.09471]
[1736879982966,0.0257,3231.7,3231.4,3.09459]
[1736879983266,0.0257,3231.7,3231.2,3.09478]
[1736879983467,0.0257,3231.7,3231.3,0.309478]
[1736879983901,0.02828315,3231.6,3231.3,0.309478]
[1736879984298,0.02828315,3231.6,3231.3,3.404198]
[1736879984672,0.0257,3231.7,3231.3,3.404198]
[1736879985402,0.0281292,3231.6,3231.3,3.404198]
[1736879985573,0.0281292,3231.6,3231.4,0.3404198]
[1736879985774,0.0257,3231.7,3231.4,0.3404198]
[1736879986106,0.02811736,3231.6,3231.4,0.3404198]
[1736879986665,0.0257,3231.9,3231.4,0.3404198]
[1736879986903,0.02808187,3231.5,3231.4,0.3404198]
[1736879987105,0.0257,3231.9,3231.4,0.3404198]
[1736879987309,0.0257,3231.9,3231.5,0.34351398]
[1736879987520,0.02818832,3231.8,3231.5,0.34351398]
[1736879987837,0.02818832,3231.8,3231.6,3.09436]
[1736879988007,0.02818832,3231.8,3231.6,3.09435]
[1736879988333,0.0257,3232.3,3231.6,3.09435]
[1736879988694,0.02876415,3232.2,3231.6,3.09435]
[1736879989238,0.02876415,3232.2,3231.7,3.09434]
[1736879989398,0.02876415,3232.2,3231.7,3.403774]
[1736879990936,0.02876415,3232.2,3231.7,0.309434]
[1736879991267,0.02876415,3232.2,3231.8,3.09417]
[1736879991590,0.0257,3232.3,3231.8,3.09417]
[1736879991792,0.02770155,3232.1,3231.8,3.09417]
[1736879992253,0.02770155,3232.1,3231.9,3.09413]
[1736879992393,0.02770155,3232.1,3232.0,3.09405]
[1736879992592,0.02770155,3232.1,3232.0,0.309405]
[1736879995136,0.02770155,3232.1,3231.6,3.0944]
[1736879996039,0.02770155,3232.1,3231.7,3.09425]
[1736879996616,0.02770155,3232.1,3231.8,3.09416]
[1736879996815,0.02770155,3232.1,3232.0,9.01130167]
[1736879997024,7.72e-06,3232.1,3232.0,9.01130167]
[1736879997337,0.19,3233.8,3233.1,3.09298]
[1736879997544,0.19,3233.8,3233.1,3.09293]
[1736879998216,0.0257,3233.7,3233.1,3.09293]
[1736879998416,0.0257,3233.7,3232.8,3.0]
[1736879998616,0.0257,3233.7,3233.2,3.09283]
[1736879998840,0.0257,3233.7,3233.0,3.09305]
[1736879999055,0.0257,3233.7,3232.8,3.0]
[1736879999221,0.0257,3233.7,3233.1,3.09297]
[1736879999836,0.0257,3233.7,3233.2,3.09287]
[1736880000370,0.0257,3233.7,3233.3,3.09281]
[1736880000580,0.0257,3233.7,3233.1,3.09296]
[1736880001073,0.0257,3233.7,3232.9,0.61196087]
[1736880001272,3.11814,3233.7,3232.7,3.09331]
[1736880001435,0.0257,3233.7,3233.0,3.09308]
[1736880001645,0.2157,3233.7,3233.0,3.09308]
[1736880001859,0.2157,3233.7,3233.1,3.09293]
[1736880002060,0.2157,3233.7,3232.9,2.91725167]
[1736880002245,0.2157,3233.7,3233.2,3.09283]
[1736880002606,0.2157,3233.7,3233.0,3.09306]
[1736880003149,0.2157,3233.7,3232.6,3.52450134]
[1736880003150,0.55036478,3233.7,3232.6,3.52450134]
[1736880003349,0.2157,3233.7,3233.1,3.09299]
[1736880004138,0.06435782,3233.6,3232.7,3.09337]
[1736880004343,0.0257,3233.4,3232.4,3.0936]
[1736880004860,0.0257,3233.4,3232.2,3.09382]
[1736880004861,0.0257,3233.3,3232.2,3.09382]
[1736880005070,0.0257,3232.9,3232.0,3.09402]
[1736880005270,0.0257,3232.8,3232.0,3.09402]
[1736880005567,0.33759,3232.8,3232.0,3.09402]
[1736880005941,0.33759,3232.8,3231.9,3.72380754]
[1736880006125,0.0257,3232.8,3231.9,3.0941]
[1736880007142,0.0257,3232.8,3232.0,3.09403]
[1736880008370,0.0257,3232.8,3231.8,0.63410719]
[1736880008371,0.0257,3232.8,3232.1,3.09393]
[1736880008546,0.0257,3232.8,3232.2,3.09384]
[1736880009032,0.0257,3232.8,3232.0,3.09402]
[1736880009231,3.11899,3232.8,3231.8,3.72829719]
[1736880009432,3.09349,3232.6,3231.7,3.0]
[1736880009766,3.11929,3232.5,3231.6,3.09439]
[1736880009969,3.11929,3232.5,3231.8,3.09423]
[1736880009970,0.0257,3232.5,3231.8,3.09423]
[1736880010411,0.0257,3232.5,3231.5,0.62316379]
[1736880010716,3.11957,3232.2,3231.3,3.09464]
[1736880010872,3.431527,3232.2,3231.3,3.09464]
[1736880011188,0.03867747,3232.1,3230.8,4.4199767]
[1736880011388,0.0257,3232.0,3231.0,3.09496]
[1736880011589,3.11976,3232.0,3230.8,3.59172517]
[1736880011762,0.0257,3232.0,3231.1,3.09489]
[1736880011962,0.0257,3232.0,3231.0,3.62248199]
[1736880012192,0.0257,3232.0,3231.2,3.09479]
[1736880012590,3.11977,3232.0,3231.0,6.71745199]
[1736880012869,0.0257,3232.0,3230.9,6.74172935]
[1736880013203,0.81936195,3232.8,3230.8,0.62731656]
[1736880013204,0.0257,3231.7,3230.8,0.62731656]
[1736880013373,3.12005,3231.7,3230.8,0.62731656]
[1736880013704,3.12005,3231.7,3230.8,3.0952]
[1736880013705,0.0257,3231.5,3230.8,3.0952]
[1736880013925,0.0257,3231.5,3230.6,8.64546959]
[1736880014267,0.0257,3231.5,3230.6,5.72821792]
[1736880014463,0.34158336,3231.5,3230.6,3.26437923]
[1736880014664,0.0257,3231.5,3230.8,3.09519]
[1736880014999,2.91725167,3232.1,3230.8,3.09519]
[1736880015206,0.19,3231.7,3230.8,3.09519]
[1736880015620,3.09444,3231.6,3230.6,9.2770109]
[1736880016115,3.09476,3231.3,3230.6,2.63284792]
[1736880016584,0.309476,3231.2,3230.6,2.63284792]
[1736880016984,0.03868936,3231.1,3230.6,2.63284792]
[1736880017216,3.404326,3231.2,3230.6,2.63284792]
[1736880017617,3.40060211,3231.2,3230.6,2.63284792]
[1736880017840,3.09522,3230.8,3229.8,3.41975005]
[1736880018041,0.03869615,3230.7,3229.8,3.41975005]
[1736880018342,3.404742,3230.8,3229.8,3.41975005]
[1736880018343,3.594742,3230.8,3229.8,3.09616]
[1736880018742,3.594742,3230.8,3229.8,3.71129847]
[1736880020039,3.594742,3230.8,3229.9,3.09605]
[1736880020538,0.19,3230.8,3229.9,3.09605]
[1736880020910,0.19,3230.8,3229.9,2.84605]
[1736880021730,3.28521,3230.8,3229.9,2.84605]
[1736880021931,3.28521,3230.8,3229.8,3.53239014]
[1736880021932,3.13407584,3230.7,3229.8,3.53239014]
[1736880022119,3.0954,3230.6,3229.8,0.61513847]
[1736880022321,0.03869687,3230.5,3229.8,0.61513847]
[1736880022654,3.09543,3230.6,3229.6,3.0]
[1736880022809,3.09543,3230.6,3229.7,3.39626]
[1736880023142,3.09543,3230.6,3229.7,0.3]
[1736880023348,3.09543,3230.6,3229.7,0.90549485]
[1736880023713,3.2852,3230.8,3229.8,3.09613]
[1736880024213,0.19,3230.8,3229.9,3.09605]
[1736880024415,0.19,3230.8,3230.0,3.405555]
[1736880024821,0.19,3230.8,3230.0,0.309605]
[1736880026977,2.91725167,3231.8,3230.1,2.91725167]
[1736880027161,0.19,3231.8,3230.8,3.09512]
[1736880027472,0.19,3231.8,3230.9,3.72612255]
[1736880027674,0.19,3231.8,3231.0,3.09499]
[1736880027979,3.28396,3232.1,3231.1,3.12470431]
[1736880028268,0.19,3232.3,3231.6,3.09442]
[1736880028687,3.09356,3232.6,3231.6,3.09442]
[1736880028851,0.309356,3232.5,3231.6,3.09442]
[1736880029061,0.309356,3232.5,3231.3,2.91725167]
[1736880029269,0.19,3232.6,3231.6,2.91725167]
[1736880029462,0.19,3232.6,3231.8,3.09418]
[1736880030476,0.15833113,3233.6,3231.9,0.02985322]
[1736880030785,0.19,3233.8,3232.5,2.91725167]
[1736880030989,0.328228,3233.7,3232.8,3.09327]
[1736880031151,0.328228,3233.7,3232.6,3.41500572]
[1736880031483,0.19,3233.8,3232.6,0.29172517]
[1736880031484,3.09264,3233.5,3232.6,0.29172517]
[1736880031664,3.09264,3233.5,3232.4,3.09366]
[1736880031865,2.91725167,3233.7,3232.0,0.8222]
[1736880032090,3.0929,3233.3,3232.1,3.71202067]
[1736880032306,3.0929,3233.3,3232.1,0.61814067]
[1736880032450,0.05650455,3233.2,3232.1,0.61814067]
[1736880032651,3.09266,3233.5,3232.4,3.09367]
[1736880032877,0.05688586,3233.1,3232.4,3.09367]
[1736880033073,3.09276,3233.4,3232.4,3.09367]
[1736880033291,0.0568514,3233.0,3232.4,3.09367]
[1736880033498,0.19,3233.4,3232.5,3.09357]
[1736880033808,0.518256,3233.4,3232.6,3.09347]
[1736880033954,0.518256,3233.4,3232.4,3.09365]
[1736880033955,0.0569032,3233.3,3232.4,3.09365]
[1736880034154,0.0569032,3233.3,3232.2,0.36181407]
[1736880034368,0.0569032,3233.3,3232.5,3.09354]
[1736880035156,0.0569032,3233.3,3232.6,0.02983571]
[1736880035385,0.0569032,3233.3,3232.6,3.09347]
[1736880035682,0.19,3233.6,3232.3,3.0937]
[1736880035683,3.0927,3233.5,3232.3,3.0937]
[1736880035914,0.05684482,3233.2,3232.2,0.36181407]
[1736880036120,0.05691873,3233.4,3232.2,0.36181407]
[1736880036254,0.05681536,3233.1,3232.2,0.36181407]
[1736880036449,3.0927,3233.5,3232.2,0.36181407]
[1736880036654,0.0567809,3233.0,3232.4,3.09367]
[1736880036869,0.32827,3233.4,3232.5,3.09358]
[1736880037070,0.05674644,3232.9,3232.5,3.09358]
[1736880037304,0.32827,3233.4,3232.6,3.09348]
[1736880037601,0.19,3233.6,3232.4,0.55]
[1736880037903,0.05690154,3233.3,3232.4,3.6436]
[1736880038076,3.14962044,3233.5,3232.4,3.6436]
[1736880038277,0.05686708,3233.2,3232.5,3.0935]
[1736880038596,3.09265,3233.5,3232.5,3.0935]
[1736880038800,0.05683262,3233.1,3232.5,3.0935]
[1736880038962,0.328265,3233.4,3232.5,3.0935]
[1736880039293,0.05698204,3233.3,3232.4,0.55]
[1736880040391,3.09294,3233.2,3232.1,3.71208067]
[1736880040578,0.35752643,3233.1,3232.1,3.71208067]
[1736880040778,3.46886159,3233.1,3232.2,0.55]
[1736880041183,0.05699291,3233.1,3232.3,2.91725167]
[1736880041495,0.19,3233.5,3232.6,3.09347]
[1736880041993,0.05692376,3233.4,3232.6,3.09347]
[1736880042195,0.05692376,3233.4,3232.8,0.55]
[1736880042367,0.19,3234.0,3233.1,3.09293]
[1736880042559,0.42377875,3233.9,3232.9,3.09319]
[1736880042894,0.09557175,3233.9,3232.7,3.09338]
[1736880043095,3.09255,3233.6,3232.5,0.7721]
[1736880043397,3.14973306,3233.5,3232.5,3.09354]
[1736880043783,3.09274,3233.4,3232.5,3.09354]
[1736880044003,3.1498116,3233.4,3232.4,3.0]
[1736880044208,0.31498116,3233.3,3232.4,6.09363]
[1736880044515,0.31498116,3233.3,3232.4,3.09363]
[1736880044516,0.37196823,3233.3,3232.4,3.09363]
[1736880044707,0.37196823,3233.3,3232.6,0.61324027]
[1736880045518,0.37196823,3233.3,3232.4,3.09363]
[1736880045734,3.46482823,3233.3,3232.4,3.09363]
[1736880045898,0.34648282,3233.2,3232.4,3.09363]
[1736880046232,0.34648282,3233.2,3232.4,3.7073041]
[1736880046233,0.05699866,3233.1,3232.4,3.7073041]
[1736880047338,0.09566348,3233.1,3231.7,3.69225167]
[1736880047487,0.09566348,3233.1,3231.8,3.0]
[1736880047829,3.0932,3232.9,3232.0,0.55]
[1736880047983,0.31501987,3232.9,3232.0,0.55]
[1736880048180,0.05675665,3232.8,3232.0,0.55]
[1736880048418,3.09307,3233.1,3232.1,3.09395]
[1736880048620,0.05664704,3232.7,3232.1,3.09395]
[1736880048819,0.19,3234.4,3232.6,0.55]
[1736880049003,3.09222,3234.0,3233.0,3.09307]
[1736880049210,3.401462,3233.9,3233.0,3.09307]
[1736880049535,3.09254,3233.6,3232.7,3.09335]
[1736880049732,3.09236,3233.8,3232.7,0.55]
[1736880049944,3.09236,3233.8,3232.9,3.09319]
[1736880050265,0.309222,3233.9,3233.2,2.91725167]
[1736880050534,3.09196,3234.2,3233.2,6.01012167]
[1736880050740,0.19,3234.4,3233.4,3.09268]
[1736880051191,3.09216,3234.0,3233.1,3.09293]
[1736880051825,0.19,3234.2,3233.0,0.55]
[1736880052123,3.09221,3234.0,3233.0,3.64309]
[1736880052426,0.31308686,3233.9,3233.0,3.64309]
[1736880053596,0.31308686,3233.9,3232.9,0.775]
[1736880053597,0.31308686,3233.9,3232.8,2.91725167]
[1736880053934,3.09234,3233.8,3232.8,6.01050167]
[1736880054156,3.09243,3233.7,3232.8,3.09325]
[1736880054423,3.0927,3233.5,3232.5,3.09351]
[1736880055022,2.95591252,3233.7,3232.4,0.55]
[1736880055023,2.91725167,3233.7,3232.4,0.55]
[1736880055273,0.19,3234.2,3232.4,0.55]
[1736880055274,3.09236,3233.8,3232.6,0.55]
[1736880055417,3.401596,3233.8,3232.8,3.0932]
[1736880055790,0.19,3233.7,3232.8,3.0932]
[1736880056190,0.19,3233.7,3232.9,3.09318]
[1736880056390,0.19,3233.7,3232.7,0.4183282]
[1736880056833,0.19,3233.7,3232.9,3.09317]
[1736880057137,0.19,3233.7,3233.0,0.55]
[1736880057295,0.19,3234.2,3233.3,3.09274]
[1736880057691,0.05354383,3234.1,3233.4,3.09269]
[1736880059074,0.05350939,3234.0,3233.6,0.63371575]
[1736880059209,3.28591,3234.3,3233.6,0.63371575]
[1736880059535,0.05347495,3233.9,3233.4,3.09269]
[1736880059724,3.614501,3234.3,3233.4,3.09269]
[1736880059926,0.05344051,3233.8,3233.4,3.09269]
[1736880060099,3.614501,3234.3,3233.4,3.09269]
[1736880060422,0.522591,3234.3,3233.0,4.41806]
[1736880060596,3.14554827,3234.2,3233.2,3.09287]
[1736880061099,3.14554827,3234.2,3233.5,0.6051874]
[1736880061628,0.05357827,3234.2,3233.5,0.6051874]
[1736880061934,0.05357827,3234.2,3233.6,3.09252]
[1736880062228,3.09167,3234.5,3233.6,3.09252]
[1736880062433,0.05369629,3234.1,3233.5,0.6051874]
[1736880062593,3.09186,3234.3,3233.4,3.09269]
[1736880062795,0.23265325,3234.6,3233.0,3.86806]
[1736880062796,0.05367336,3234.0,3233.0,3.86806]
[1736880062994,0.09245779,3234.2,3233.0,4.196627]
[1736880063193,0.03865328,3234.2,3233.0,0.775]
[1736880063418,3.09215,3234.0,3233.1,3.09299]
[1736880063625,0.309215,3233.9,3233.1,3.09299]
[1736880063827,0.3629162,3233.9,3233.0,0.775]
[1736880064029,3.09207,3234.1,3233.0,0.6320199]
[1736880064236,0.05367759,3233.8,3233.0,0.6320199]
[1736880064432,3.09207,3234.1,3233.0,0.6320199]
[1736880064639,0.05376495,3233.7,3233.0,0.6320199]
[1736880064793,3.09235,3233.8,3233.0,0.6320199]
[1736880065135,0.05373051,3233.6,3233.0,0.6320199]
[1736880065293,3.401585,3233.8,3233.0,0.6320199]
[1736880065294,3.14628495,3233.7,3233.0,0.6320199]
[1736880065496,0.05369606,3233.5,3233.0,0.6320199]
[1736880065734,3.09281,3233.4,3232.4,4.70877256]
[1736880065905,3.49968672,3233.4,3232.4,7.80244256]
[1736880066104,3.4610226,3233.4,3232.5,3.09357]
[1736880066519,0.05355955,3233.4,3232.5,0.55]
[1736880066720,0.05355955,3233.4,3232.6,0.02983424]
[1736880066930,0.194,3233.6,3232.8,3.09322]
[1736880067241,0.05332536,3233.5,3232.6,3.09345]
[1736880067411,3.14594536,3233.5,3232.6,3.09345]
[1736880067614,3.14594536,3233.5,3232.6,3.99182291]
[1736880068823,3.09303,3233.1,3232.4,5.3402791]
[1736880069238,0.0533417,3233.4,3232.4,5.3402791]
[1736880069239,0.05310862,3233.0,3232.4,5.3402791]
[1736880069403,3.09286,3233.3,3232.4,4.70877256]
[1736880069601,0.05299894,3232.9,3232.4,4.70877256]
[1736880069799,3.09319,3232.9,3232.4,4.70877256]
[1736880070109,0.05281988,3232.8,3232.4,4.70877256]
[1736880070423,0.0386699,3233.2,3232.4,4.70877256]
[1736880070623,0.05229892,3232.7,3232.4,4.70877256]
[1736880070933,0.194,3233.6,3232.4,7.80242256]
[1736880070934,3.09278,3233.4,3232.4,7.80242256]
[1736880071138,0.05221336,3232.6,3232.4,7.80242256]
[1736880071342,3.09258,3233.6,3232.6,3.09339]
[1736880071513,3.09258,3233.6,3232.5,0.85483809]
[1736880071514,3.53288634,3234.4,3233.0,0.2496]
[1736880071713,0.0526475,3233.5,3233.3,3.09278]
[1736880071929,0.194,3234.3,3233.1,0.825]
[1736880071930,0.194,3234.3,3233.4,3.09264]
[1736880072108,3.09178,3234.4,3233.4,3.72674916]
[1736880072303,3.53288634,3234.7,3233.5,0.02981642]
[1736880072640,4.14348055,3234.7,3233.7,0.825]
[1736880072939,7.23497055,3234.7,3233.8,3.09233]
[1736880073739,3.70208421,3234.7,3233.8,3.09233]
[1736880073897,3.28549,3234.7,3233.8,3.09233]
[1736880074302,3.28549,3234.7,3233.4,3.09267]
[1736880074303,3.09176,3234.4,3233.4,3.09267]
[1736880074526,0.09032445,3234.6,3233.5,3.0]
[1736880074729,0.05168588,3234.3,3233.5,6.09259]
[1736880074935,3.09182,3234.4,3233.5,6.09259]
[1736880075142,0.05170223,3234.2,3233.5,6.09259]
[1736880075363,3.09187,3234.3,3233.4,3.91769]
[1736880075649,3.45329546,3234.2,3233.3,6.0928]
[1736880076406,0.36132546,3234.2,3233.1,3.825]
[1736880076741,6.62467634,3234.4,3233.4,3.09263]
[1736880076947,3.09189,3234.3,3233.4,3.09263]
[1736880077132,3.14406289,3234.3,3233.4,3.09263]
[1736880077441,3.14406289,3234.3,3233.5,0.62036015]
[1736880077945,3.09195,3234.2,3233.5,0.62036015]
[1736880078246,0.36651632,3234.1,3233.5,0.62036015]
[1736880079307,0.05210403,3234.1,3233.5,0.62036015]
[1736880079513,0.05210403,3234.1,3233.6,3.85592]
[1736880079734,0.194,3234.4,3233.6,3.85592]
[1736880079934,0.05204956,3234.0,3233.6,3.85592]
[1736880080212,0.05201512,3233.9,3233.6,0.7634]
[1736880080541,3.28576,3234.4,3233.6,0.7634]
[1736880080729,0.05198068,3233.8,3233.6,0.7634]
[1736880080936,3.420436,3234.3,3233.6,0.7634]
[1736880081133,0.05194624,3233.7,3233.6,0.7634]
[1736880081356,3.09186,3234.3,3233.6,0.7634]
[1736880081526,0.05194624,3233.7,3233.6,0.7634]
[1736880081737,3.09186,3234.3,3233.6,0.7634]
[1736880081956,0.05194624,3233.7,3233.6,0.7634]
[1736880082159,3.09186,3234.3,3233.6,0.7634]
[1736880082338,0.05194624,3233.7,3233.6,0.7634]
[1736880082864,3.09186,3234.3,3233.6,0.7634]
[1736880083064,0.05194624,3233.7,3233.6,0.7634]
[1736880083266,3.09186,3234.3,3233.6,0.7634]
[1736880083464,0.05194624,3233.7,3233.1,0.7634]
[1736880083650,0.03865693,3233.7,3233.0,0.2496]
[1736880083852,3.09291,3233.2,3233.0,0.2496]
[1736880084037,6.23950078,3233.4,3233.0,0.2496]
[1736880084243,0.05178466,3233.1,3233.0,0.2496]
[1736880084433,3.71678008,3233.3,3233.0,0.2496]
[1736880084629,0.05159414,3233.1,3233.0,0.2496]
[1736880084968,3.093,3233.1,3233.0,0.2496]
[1736880085268,3.14459414,3233.1,3233.0,0.2496]
[1736880086261,3.52144856,3233.1,3233.0,0.2496]
[1736880086766,3.56011651,3233.1,3233.0,0.2496]
[1736880086954,6.43552492,3233.1,3233.0,0.2496]
[1736880087475,3.52144856,3233.1,3233.0,0.2496]
[1736880088137,0.42844856,3233.1,3233.0,0.2496]
[1736880088328,0.05159414,3233.1,3233.0,0.2496]
[1736880088733,0.191,3233.2,3233.0,0.2496]
[1736880088978,0.04899312,3233.1,3233.0,0.2496]
[1736880089770,3.28325,3233.9,3233.0,0.2496]
[1736880089970,3.09225,3233.9,3233.0,0.2496]
[1736880090139,3.33263886,3233.8,3233.0,0.2496]
[1736880090334,3.14163886,3233.8,3233.0,0.2496]
[1736880091080,0.04929886,3233.8,3233.0,0.2496]
[1736880091288,3.09275,3233.4,3233.0,0.2496]
[1736880091789,0.04944323,3233.3,3233.0,0.2496]
[1736880093545,3.09291,3233.2,3233.0,0.2496]
[1736880093942,3.14240754,3233.1,3233.0,0.2496]
[1736880102601,0.04940754,3233.1,3233.0,0.2496]
[1736880102794,3.40708932,3233.3,3233.0,0.2496]
[1736880103001,0.04920313,3233.2,3233.0,0.2496]
[1736880103299,3.40708932,3233.3,3233.0,0.2496]
[1736880103598,0.04904331,3233.1,3233.0,0.2496]
[1736880104313,3.14204331,3233.1,3233.0,0.2496]
[1736880104666,3.18071168,3233.1,3233.0,0.2496]
[1736880105414,3.18071168,3233.1,3231.3,0.8247]
[1736880105415,0.55,3233.0,3231.3,0.8247]
[1736880105589,3.09411,3232.0,3231.3,0.8247]
[1736880105776,0.03868161,3231.9,3231.3,0.8247]
[1736880105977,0.03868161,3231.9,3230.8,0.7926]
[1736880105978,3.09452,3231.6,3230.8,0.7926]
[1736880106303,3.2851,3232.0,3230.8,0.7926]
[1736880106304,0.04806946,3231.5,3230.9,3.09503]
[1736880106503,3.09427,3231.8,3231.1,0.63277487]
[1736880106713,3.09427,3231.8,3230.9,3.09503]
[1736880106714,0.04803497,3231.4,3230.9,3.09503]
[1736880106903,3.09427,3231.8,3230.9,3.09503]
[1736880107103,0.04800048,3231.3,3230.9,3.09503]
[1736880107416,3.422797,3231.8,3230.9,3.09503]
[1736880107720,0.04796598,3231.2,3230.9,3.09503]
[1736880108016,3.422797,3231.8,3230.9,3.09503]
[1736880108312,0.04802358,3231.1,3230.9,0.61126709]
[1736880108612,3.09435,3231.7,3230.9,0.61126709]
[1736880108821,3.09435,3231.7,3230.8,3.88772]
[1736880108822,0.3422877,3231.6,3230.8,0.7926]
[1736880109016,3.09455,3231.5,3230.8,0.7926]
[1736880109317,3.09465,3231.4,3230.8,0.7926]
[1736880109827,0.04746099,3231.3,3230.8,0.7926]
[1736880109979,3.09473,3231.3,3230.8,0.7926]
[1736880110314,3.09492,3231.1,3230.5,0.7926]
[1736880110473,3.13372199,3231.0,3230.5,0.7926]
[1736880110678,3.0952,3230.9,3229.9,3.09605]
[1736880110907,3.09522,3230.8,3229.7,0.7926]
[1736880111223,3.14131945,3230.8,3230.0,0.63252694]
[1736880111516,3.0954,3230.6,3229.7,0.7926]
[1736880111884,0.04590046,3230.5,3229.7,0.7926]
[1736880112421,0.04590046,3230.5,3229.7,3.7926]
[1736880112928,0.04590046,3230.5,3229.7,0.7926]
[1736880113296,0.04590046,3230.5,3229.7,3.7926]
[1736880115459,0.04590046,3230.5,3229.7,3.88884]
[1736880115586,0.04590046,3230.5,3229.8,3.54839826]
[1736880115993,0.04553442,3230.4,3229.8,3.54839826]
[1736880116187,0.60610421,3230.7,3229.8,3.54839826]
[1736880116500,0.04560347,3230.6,3229.7,3.7926]
[1736880117111,3.0954,3230.6,3229.7,3.7926]
[1736880117318,0.04553378,3230.5,3229.7,3.7926]
[1736880117727,0.04553378,3230.5,3229.7,3.88886]
[1736880118097,0.04553378,3230.5,3229.7,0.7926]
[1736880118303,0.31409338,3230.4,3229.7,0.7926]
[1736880118627,3.14146796,3230.4,3229.7,0.7926]
[1736880119447,0.04587796,3230.4,3229.7,0.7926]
[1736880119615,3.09542,3230.6,3229.7,0.7926]
[1736880119809,0.04546473,3230.3,3229.7,0.7926]
[1736880120038,3.09542,3230.6,3229.7,0.7926]
[1736880120239,0.0454302,3230.2,3229.7,0.7926]
[1736880120446,0.309542,3230.5,3229.7,0.7926]
[1736880120636,0.04539567,3230.1,3229.7,0.7926]
[1736880120847,3.405032,3230.5,3229.7,0.7926]
[1736880121047,0.04536114,3230.0,3229.7,0.7926]
[1736880121254,3.0956,3230.4,3229.7,0.7926]
[1736880121458,0.04532661,3229.9,3229.7,0.7926]
[1736880121641,2.9197226,3230.8,3229.7,0.7926]
[1736880121841,0.309473,3231.2,3230.3,0.7745]
[1736880122051,3.09483,3231.2,3230.3,0.7745]
[1736880122230,3.09532,3230.7,3229.8,3.7745]
[1736880122427,3.09512,3230.9,3229.9,3.09606]
[1736880122653,3.09523,3230.8,3229.9,3.09606]
[1736880123851,3.09537,3230.7,3229.8,1.3906252]
[1736880124018,3.404967,3230.6,3229.8,0.7745]
[1736880124220,3.0955,3230.5,3229.8,0.7745]
[1736880125016,0.22869946,3230.5,3229.8,0.7745]
[1736880125216,0.22869946,3230.5,3228.9,6.0167426]
[1736880125217,3.09614,3229.9,3229.4,0.7745]
[1736880125515,2.9197226,3230.2,3229.1,0.7745]
[1736880125516,0.03870566,3229.8,3229.1,0.7745]
[1736880125734,3.09632,3229.7,3229.1,0.7745]
[1736880125929,3.09573,3230.3,3229.3,3.09661]
[1736880126129,2.9197226,3230.8,3229.4,0.7745]
[1736880126442,0.499537,3230.6,3229.4,0.7745]
[1736880126853,3.594937,3230.6,3229.8,0.7745]
[1736880127031,3.09549,3230.5,3229.8,0.7745]
[1736880127562,0.0386998,3230.4,3229.8,0.7745]
[1736880127780,3.09584,3230.2,3229.5,0.7745]
[1736880128132,3.13460259,3230.1,3229.5,0.7745]
[1736880128338,6.0152526,3230.5,3229.5,0.7745]
[1736880128339,3.40948026,3230.0,3229.5,0.7745]
[1736880128537,0.31346026,3230.0,3229.1,3.0]
[1736880128826,3.09619,3229.8,3229.2,0.7745]
[1736880129840,3.09582,3230.2,3229.2,0.7745]
[1736880130038,0.04157595,3229.7,3229.2,0.7745]
[1736880130234,3.09618,3229.8,3229.2,0.7745]
[1736880130458,0.04157595,3229.7,3229.2,0.7745]
[1736880130639,0.35535154,3229.7,3229.2,0.7745]
[1736880131260,0.04157595,3229.7,3229.2,0.7745]
[1736880131583,3.09621,3229.8,3229.1,0.7745]
[1736880131734,3.13498785,3229.7,3229.1,0.7745]
[1736880132073,3.13757783,3229.7,3229.1,0.7745]
[1736880132431,0.04129783,3229.7,3229.1,0.7745]
[1736880132629,0.31374978,3229.6,3229.1,0.7745]
[1736880132829,0.04117669,3229.5,3229.1,0.7745]
[1736880133030,3.09607,3229.9,3229.1,0.7745]
[1736880133373,3.13752791,3229.8,3229.1,0.7745]
[1736880133862,3.09628,3229.7,3229.1,0.7745]
[1736880134169,0.04133796,3229.7,3229.1,0.7745]
[1736880134463,0.37409076,3229.7,3229.1,0.7745]
[1736880134865,3.13513936,3229.6,3228.6,6.09722]